Cogmind - Beta 9.6 *** ADVENTURER MODE // 2020.04.18 @ 12:18:53 // Winter2019/RPGLIKE Player: Plarzay Result: Destroyed by D-53 Grenadier with Mini Grenade Launcher Performance ------------- Evolutions (0) 0 Regions Visited (4) 800 Robots Destroyed (39) 195 Value Destroyed (822) 822 Prototype IDs (3) 60 Alien Tech Used (0) 0 Bonus (307) 307 TOTAL SCORE: 2184 Bonus ------- Follower Combat Kills 7 Aligned with FarCom 300 Cogmind --------- Core Integrity 0/750 Matter 178/400 Energy 150/150 System Corruption 0% Temperature Cool (0) Movement Walking (120) Location -9/Mines Parts ------- > --- POWER (1) -------- Light Angular Momentum Engine > --- PROPULSION (2) --- Aluminum Leg Aluminum Leg > --- UTILITY (4) ------ Improved Heat Sink Sensor Array Skeleton Box > --- WEAPON (3) ------- Assault Rifle Grenade Launcher Mining Laser > --- INVENTORY (3) ---- Ion Engine Reinforced Ion Engine Peak State ------------ > --- POWER ------------ Light Angular Momentum Engine > --- PROPULSION ------- Aluminum Leg Aluminum Leg > --- UTILITY ---------- Improved Heat Sink Sensor Array Light Armor Plating Skeleton Box > --- WEAPON ----------- Assault Rifle Grenade Launcher Mining Laser > --- INVENTORY -------- Ion Engine Light Ion Engine Reinforced Ion Engine [Rating: 21] Favorites ----------- Power Reinforced Ion Engine Engine Reinforced Ion Engine Propulsion Aluminum Leg Leg Aluminum Leg Utility Light Armor Plating Device Sensor Array Protection Light Armor Plating Weapon Assault Rifle Energy Gun EM Pulse Gun Ballistic Gun Assault Rifle Launcher Grenade Launcher Special Weapon Mining Laser Build | -11 -10 -10 -10 -9 ------- Run | Scr Mat Min Exi Min Slots Evolved 6 | 4 . 1 . 1 Power . | . . . . . Propulsion 1 | 1 . . . . Utility 3 | 2 . 1 . . Weapon 2 | 1 . . . 1 Parts Attached 15 | 5 5 2 1 2 Power 3 | 1 1 . . 1 Engine 3 | 1 1 . . 1 Core . | . . . . . Reactor . | . . . . . Propulsion 2 | 2 . . . . Treads . | . . . . . Leg 2 | 2 . . . . Wheel . | . . . . . Hover . | . . . . . Flight . | . . . . . Utility 6 | . 4 1 1 . Device 4 | . 3 . 1 . Storage . | . . . . . Processor . | . . . . . Hackware . | . . . . . Protection 2 | . 1 1 . . Artifact . | . . . . . Weapon 4 | 2 . 1 . 1 Energy Gun 1 | 1 . . . . Energy Cannon . | . . . . . Ballistic Gun 1 | 1 . . . . Ballistic Cannon . | . . . . . Launcher 1 | . . 1 . . Special Weapon 1 | . . . . 1 Impact Weapon . | . . . . . Slashing Weapon . | . . . . . Piercing Weapon . | . . . . . Special Melee Weapon . | . . . . . Unidentified Prototypes 1 | . . . 1 . Parts Lost 1 | . . . . 1 Power . | . . . . . Propulsion . | . . . . . Utility 1 | . . . . 1 Weapon . | . . . . . Highest Loss Streak 1 | . . . . 1 Average Slot Usage (%) 96 | . 92 99 100 99 Engine 11 | . 12 11 11 10 Leg 23 | . 25 23 22 20 Device 23 | . 20 23 28 30 Protection 12 | . 9 17 15 9 Energy Gun 5 | . 12 . . . Ballistic Gun 11 | . 12 11 11 10 Launcher 5 | . . 10 11 10 Naked Turns . | . . . . . Heaviest Build 23 | 9 19 23 23 23 Greatest Support 30 | 25 25 25 25 30 Greatest Overweight (x) . | . . . . . Average Overweight (x) . | . . . . . Largest Inventory Capacity 3 | 1 3 3 3 3 Average Capacity 2 | 1 1 3 3 3 Most Carried 3 | 1 3 3 3 3 Average Carried 2 | . 1 2 3 2 Final Capacity 3 | 1 3 3 3 3 Final Carried 3 | 1 3 3 3 2 Class Distribution -------------------- 93% | Mutant 6% | Skirmisher Dominant Class ---------------- Mutant | -10/Materials Mutant | -10/Mines Mutant | -10/Exiles Skirmisher | -9/Mines Resources | -11 -10 -10 -10 -9 ----------- Run | Scr Mat Min Exi Min Matter Collected 671 | 199 218 254 . . Remotely . | . . . . . Salvage Created 1151 | . 795 224 . 132 Parts 79 | . 52 19 . 8 Haulers Intercepted 2 | . 2 . . . Recyclers Shooed 1 | . . . . 1 Parts Field Recycled . | . . . . . Retrieved Matter . | . . . . . Parts Self-Destructed . | . . . . . Prevented . | . . . . . Kills | -11 -10 -10 -10 -9 ------- Run | Scr Mat Min Exi Min Combat Hostiles Destroyed 33 | . 15 11 . 7 Guns 17 | . 13 2 . 2 AOE 16 | . 2 9 . 5 Classes Destroyed 8 | . 4 . . 4 Builder 1 | . . . . 1 Hauler 2 | . 2 . . . Recycler 2 | . . . . 2 Watcher 1 | . 1 . . . Swarmer 13 | . 6 5 . 2 Grunt 15 | . 9 6 . . Demolisher 1 | . . . . 1 Assembled 4 | . . . . 4 Best Kill Streak 10 | . 4 3 . 10 Combat Bots Only 7 | . 3 3 . 7 Max Kills in Single Turn 4 | . 2 3 . 4 Gunslinging 1 | . 1 . . . Exploded 4 | . 2 3 . 4 Melee . | . . . . . Uniques/NPCs Destroyed . | . . . . . Combat | -11 -10 -10 -10 -9 -------- Run | Scr Mat Min Exi Min Damage Taken 1074 | . 326 176 . 572 Core 778 | . 237 122 . 419 Absorbed by Shields . | . . . . . Redirected to Core 595 | . 190 85 . 320 Core Remaining (%) 100 | 100 . . . . Volleys Fired 91 | . 39 29 . 23 Largest 2 | . 2 1 . 2 Hottest 120 | . 60 30 . 120 Shots Fired 133 | . 77 29 . 27 Gun 104 | . 77 12 . 15 Cannon . | . . . . . Launcher 25 | . . 17 . 8 Special 4 | . . . . 4 Kinetic 66 | . 39 12 . 15 Thermal 4 | . . . . 4 Explosive 25 | . . 17 . 8 Electromagnetic 38 | . 38 . . . Robot Hit Streak 15 | . 15 13 . 9 Robot Miss Streak 1 | . 1 1 . 1 Penetration Max . | . . . . . Secondary Targets 4 | . 4 . . . Max Gunslinging Chain 1 | . 1 . . . Shots Hit Robots 103 | . 63 17 . 23 Core Hits 69 | . 27 20 . 22 Critical Hits 1 | . 1 . . . Critical Kills . | . . . . . Critical Parts Destroyed 1 | . 1 . . . Melee Attacks . | . . . . . Impact . | . . . . . Slashing . | . . . . . Piercing . | . . . . . Sneak Attacks . | . . . . . Combat Hostiles . | . . . . . Follow-up Attacks . | . . . . . Damage Inflicted 2515 | . 856 1001 . 658 Guns 1045 | . 767 134 . 144 Cannons . | . . . . . Explosions 1422 | . 89 867 . 466 Melee . | . . . . . Ramming . | . . . . . Kinetic 603 | . 325 134 . 144 Thermal 268 | . 89 131 . 48 Explosive 1202 | . . 736 . 466 Electromagnetic 442 | . 442 . . . Impact . | . . . . . Slashing . | . . . . . Piercing . | . . . . . Highest Corruption . | . . . . . Average Corruption . | . . . . . Corruption Purged . | . . . . . Overload Shots . | . . . . . Overflow Damage 93 | . 2 54 . 37 Projectiles . | . . . . . Explosions 93 | . 2 54 . 37 Melee . | . . . . . Knockbacks . | . . . . . Impact . | . . . . . Kinetic . | . . . . . Secondary . | . . . . . Self-Inflicted Damage 150 | . 24 15 . 111 Shots 11 | . 1 2 . 8 Rammed . | . . . . . Targets Rammed . | . . . . . Kicked . | . . . . . Crushed . | . . . . . Highest Temperature 81 | . 81 . . . Average Temperature 40 | . 40 . . . Received Heat Transfer 264 | . 153 93 . 18 Siege Activations . | . . . . . Robots Corrupted . | . . . . . Combat Hostiles . | . . . . . Parts Fried 1 | . 1 . . . Impact Corruptions . | . . . . . Robots Melted . | . . . . . Combat Hostiles . | . . . . . Parts Melted . | . . . . . Heat Transferred 400 | . 150 150 . 100 Parts Sabotaged . | . . . . . Parts Stolen . | . . . . . Parts Stripped . | . . . . . Power Chain Reactions 2 | . 2 . . . Missiles Intercepted . | . . . . . Alert | -11 -10 -10 -10 -9 ------- Run | Scr Mat Min Exi Min Peak Influence 318 | . 196 318 . 94 Average Influence 90 | . 83 134 . 22 Maximum Alert Level 1 | . . 1 . . Low Security (%) 92 | 100 100 78 . 100 Level 1 7 | . . 21 . . Level 2 . | . . . . . Level 3 . | . . . . . Level 4 . | . . . . . Level 5 . | . . . . . High Security . | . . . . . Max Security . | . . . . . Squads Dispatched 5 | . 4 . . 1 Investigation 4 | . 4 . . . Extermination . | . . . . . Reinforcement 1 | . . . . 1 Assault . | . . . . . Garrison . | . . . . . Intercept . | . . . . . Construction Impeded 1 | . . . . 1 Haulers Reinforced . | . . . . . Stealth | -11 -10 -10 -10 -9 --------- Run | Scr Mat Min Exi Min Distress Signals 1 | . . . . 1 Communications Jammed . | . . . . . Distress Signals . | . . . . . Times Spotted 50 | . 20 12 . 18 Peak Tracking Total 14 | . 3 3 . 14 Tactical Retreats 1 | . . 1 . . Traps | -11 -10 -10 -10 -9 ------- Run | Scr Mat Min Exi Min Traps Triggered 1 | . 1 . . . Indirectly . | . . . . . Trap Hack Attempts . | . . . . . Triggered . | . . . . . Disarmed 3 | . 3 . . . Reprogrammed . | . . . . . Reused . | . . . . . Traps Extracted . | . . . . . Installed . | . . . . . Triggered . | . . . . . Exploded 1 | . . . 1 . Machines | -11 -10 -10 -10 -9 ---------- Run | Scr Mat Min Exi Min Machines Disabled 4 | . . 2 . 2 Max in Single Turn 1 | . . 1 . 1 Machines Sabotaged . | . . . . . Garrisons Compromised . | . . . . . Overloaded Fab Kills . | . . . . . Fab Network Shutdowns . | . . . . . Hacking | -11 -10 -10 -10 -9 --------- Run | Scr Mat Min Exi Min Machines Accessed 7 | . 7 . . . Terminals 6 | . 6 . . . Fabricators . | . . . . . Repair Stations . | . . . . . Recycling Units 1 | . 1 . . . Scanalyzers . | . . . . . Garrison Access . | . . . . . Total Hacks 25 | . 25 . . . Successful 20 | . 20 . . . Failed 5 | . 5 . . . Catastrophic 1 | . 1 . . . Database Lockouts . | . . . . . Manual 19 | . 18 . 1 . Terminals 24 | . 24 . . . Fabricators . | . . . . . Repair Stations . | . . . . . Recycling Units 1 | . 1 . . . Scanalyzers . | . . . . . Garrison Access . | . . . . . Terminal Hacks 10 | . 10 . . . Prototype ID Bank 1 | . 1 . . . Branch Access Points 1 | . 1 . . . Machine Index 1 | . 1 . . . Unreport Threat 1 | . 1 . . . Disarm Traps 1 | . 1 . . . Transport Status 1 | . 1 . . . Recall Investigation 1 | . 1 . . . Zone Layout 3 | . 3 . . . Fabricator Hacks . | . . . . . Repair Station Hacks . | . . . . . Recycling Unit Hacks 1 | . 1 . . . Report Inventory 1 | . 1 . . . Scanalyzer . | . . . . . Garrison Access Hacks . | . . . . . Unauthorized Hacks 9 | . 9 . . . Terminals 9 | . 9 . . . Track 3 | . 3 . . . Botnet 6 | . 6 . . . Fabricators . | . . . . . Repair Stations . | . . . . . Recycling Units . | . . . . . Scanalyzers . | . . . . . Garrison Access . | . . . . . Data Cores Recovered . | . . . . . Used . | . . . . . Hacking Detections 6 | . 6 . . . Full Trace Events 4 | . 4 . . . Feedback Events . | . . . . . Feedback Blocked . | . . . . . Robot Schematics Acquired . | . . . . . Robots Built . | . . . . . Matter . | . . . . . Time . | . . . . . Total Robot Build Rating . | . . . . . Part Schematics Acquired . | . . . . . Parts Built . | . . . . . Matter . | . . . . . Time . | . . . . . Total Part Build Rating . | . . . . . Parts Repaired . | . . . . . Time . | . . . . . Parts Recycled . | . . . . . Recycled Matter . | . . . . . Retrieved Matter . | . . . . . Retrieved Components . | . . . . . Parts Scanalyzed . | . . . . . Part Schematics Acquired . | . . . . . Parts Damaged . | . . . . . Bothacking | -11 -10 -10 -10 -9 ------------ Run | Scr Mat Min Exi Min Used RIF Installer . | . . . . . Robots Hacked . | . . . . . Non-combat . | . . . . . Combat . | . . . . . Robot Hacks Applied . | . . . . . Relay Couplers Released . | . . . . . Robots Rewired . | . . . . . Allies Hacked . | . . . . . Hacks Repelled . | . . . . . Allies | -11 -10 -10 -10 -9 -------- Run | Scr Mat Min Exi Min Total Allies 1 | . . 1 . . Largest Group 1 | . . 1 1 1 Highest-Rated Group 31 | . . 31 31 31 Highest-Rated Ally 31 | . . 31 31 31 Total Orders . | . . . . . Ally Attacks 4 | . . . . 4 Total Damage 22 | . . . . 22 Kills 1 | . . . . 1 Allies Corrupted . | . . . . . Allies Melted . | . . . . . Intel | -11 -10 -10 -10 -9 ------- Run | Scr Mat Min Exi Min Robot Analysis Total . | . . . . . Derelict Logs Recovered 1 | . . 1 . . Drone Launches . | . . . . . Drone Recoveries . | . . . . . Exploration | -11 -10 -10 -10 -9 ------------- Run | Scr Mat Min Exi Min Turns Passed 1853 | 61 813 500 324 155 Spaces Moved 1225 | 39 523 343 243 77 Core 7 | 7 . . . . Treads . | . . . . . Legs 1218 | 32 523 343 243 77 Wheels . | . . . . . Hover . | . . . . . Flight . | . . . . . Fastest Speed 50 | 50 120 120 120 120 Average Speed 119 | 107 120 120 120 120 Slowest Speed 120 | 120 120 120 120 120 Overloaded Moves . | . . . . . Propulsion Burnouts . | . . . . . Robots Hopped . | . . . . . Cave-ins Triggered . | . . . . . Exploration Rate (%) 53 | 3 97 80 69 20 Regions Visited 4 Branch Regions 3 Pre-discovered Areas . | . . . . . Known Exits Taken 1 | . 1 . . . Unknown Exits Taken 3 | 1 . 1 1 . Scrap Searched 2 | . . 2 . . Spaces Dug 32 | . . 32 . . Terrain Destroyed 134 | . 2 117 . 15 Melee . | . . . . . Projectile 1 | . . . . 1 AOE 133 | . 2 117 . 14 Actions | -11 -10 -10 -10 -9 --------- Run | Scr Mat Min Exi Min Total 1470 | 58 631 402 275 104 Wait 123 | 9 58 25 31 . Move 1221 | 38 522 342 242 77 Hop . | . . . . . Pick Up 12 | 6 4 1 . 1 Fast Attach 5 | . 3 1 1 . Attach 6 | 5 . . . 1 Detach . | . . . . . Swap 4 | . 2 1 . 1 Drop 6 | . 3 1 1 1 Fire 91 | . 39 29 . 23 Melee . | . . . . . Ram . | . . . . . Kick . | . . . . . Crush . | . . . . . Escape Stasis . | . . . . . Rewire . | . . . . . Trap . | . . . . . Miscellaneous 2 | . . 2 . . Route ------- -11/Scrapyard -10/Materials (discovered 5 exits: [*Mat x3] / *Min x2) -10/Mines (discovered 3 exits: [*Mat x2] / *Exi) -10/Exiles -9/Mines History --------- Turn | Location | Event 1 | -11/Scrapyard | Upgraded with Propulsion slot (x1) 1 | -11/Scrapyard | Upgraded with Utility slot (x2) 1 | -11/Scrapyard | Upgraded with Weapon slot (x1) 8 | -11/Scrapyard | Discovered new exit (range 16) 62 | -11/Scrapyard | Entered Materials 62 | -10/Materials | Discovered new exit (range 15) 170 | -10/Materials | Identified exit to Mines 201 | -10/Materials | Discovered new exit (range 17) 318 | -10/Materials | Build established: Mutant 479 | -10/Materials | Discovered new exit (range 10) 537 | -10/Materials | Reached level 2 679 | -10/Materials | Discovered new exit (range 9) 875 | -10/Materials | Entered Mines 1065 | -10/Mines | Reached level 3 1067 | -10/Mines | Upgraded with Utility slot (x1) 1189 | -10/Mines | Discovered new exit (range 5) 1192 | -10/Mines | Discovered new exit (range 11) 1193 | -10/Mines | Found a hidden stash of uninstalled traps 1305 | -10/Mines | Received a Mining Laser from a helpful Derelict 1328 | -10/Mines | Learned Materials emergency access door positions 1368 | -10/Mines | Deemed a non-threat by the Exiles lab entrance 1368 | -10/Mines | Discovered new exit (range 5) 1375 | -10/Mines | Entered Exiles 1375 | -10/Exiles | Accompanied by 1 ally 1405 | -10/Exiles | Met 8R-AWN 1426 | -10/Exiles | Met EX-HEX 1461 | -10/Exiles | Met EX-BIN 1475 | -10/Exiles | Aligned with FarCom system 1476 | -10/Exiles | Given EX-Vault access code 1504 | -10/Exiles | Opened EX-Vault 1509 | -10/Exiles | Found Prototype Device 1509 | -10/Exiles | Identified Skeleton Box 1533 | -10/Exiles | Warned to stay clear of 0b10 Research branches 1555 | -10/Exiles | Exiles lab attacked by MAIN.C 1653 | -10/Exiles | Discovered new exit (range 15) 1699 | -10/Exiles | Left Exiles lab with Skeleton Box 1699 | -10/Exiles | Entered Mines 1699 | -9/Mines | Accompanied by 1 ally 1701 | -9/Mines | Reached level 4 1701 | -9/Mines | Upgraded with Weapon slot (x1) 1773 | -9/Mines | Assembled infested the area 1807 | -9/Mines | Core integrity fell below 50% 1847 | -9/Mines | Core integrity fell below 20% 1854 | -9/Mines | Destroyed by D-53 Grenadier with Mini Grenade Launcher Last Messages --------------- 01820_ Seismic Survey Station disabled. 01821_ The unstable cave ceiling collapses. 01821_ ALERT: Construction progress impeded, dispatching reinforcements to local area. 01821_ as-68462 destroyed. 01822_ The unstable cave ceiling collapses. 01824_ as-31974 destroyed. 01826_ as-89468 destroyed. 01830_ The unstable cave ceiling collapses. 01831_ S-10 Pest destroyed. 01834_ Acquired Lgt. Angular Momentum Engine. 01836_ The unstable cave ceiling collapses. 01837_ Dropped Lgt. Ion Engine. 01840_ The unstable cave ceiling collapses. 01842_ Lgt. Armor Plating destroyed. 01842_ D-53 Grenadier destroyed. 01843_ The unstable cave ceiling collapses. 01852_ Destroyed Com. Wheel. 01852_ R-06 Scavenger destroyed. 01853_ The unstable cave ceiling collapses. Map ----- +----------------------------------------------------+ | ???#####?????????????????????????????????????????? | | ???# ##???????????????????????????????????????? | | ???# #???????????????????????????????????????? | | ???# ##??????????????????????????????????????? | | ???# #??????????????????????????????????????? | | ???## #??????????????????????????????????????? | | ????## ##############?????????????????????????? | | ????## #?????????????????????????? | | ???## ############ #?????????????????????????? | | ??## ##??????????# #?????????????????????????? | | ??# ##???????????# #?????????????????????????? | | ??# #????????????# #?????????????????????????? | | ??# ######???##### ###???????????????????????? | | ??# ## ##?## #???????????????????????? | | ??## ### #???????????????????????? | | ???### ## #???????????????????????? | | ?????## ##r #???????????????????????? | | ??????## ### #######?????????????????? | | ???????### ### #?????##??????????? | | ?????????### ##?# """ """ #???? #??????????? | | ???????????## ##??# " " """ #?? #??????????? | | ????????????# ##???# " ## #???????????? | | ????????????# ##???## #???????????? | | ????????????####????# #???????????? | | ??????????????????### #### #???????????? | | ?????????????????## @ #?????????????????? | | ?????????????????# #?????????????????? | | ???????????????## #?????????????????? | | ???????????????# d #????????????????? | | ??????????????# % # #???????????????? | | ???????????? # #???????????????? | | ??????????? ## g##???????????????? | | ??????????? # ## ? ? #????????????????? | | ?????????? # #??#? ?#????????????????? | | ???????????? ?##### #?????? ?????????????????? | | ???????????? ??????##??????? ?????????????????? | | ?????????????#????????????????? #????????????????? | | ??????????????????????????????? ????????????????? | | ????????????????????????????????##???????????????? | | ?????????????????????????????????????????????????? | | ?????????????????????????????????????????????????? | | ?????????????????????????????????????????????????? | | ?????????????????????????????????????????????????? | | ?????????????????????????????????????????????????? | | ?????????????????????????????????????????????????? | | ?????????????????????????????????????????????????? | | ?????????????????????????????????????????????????? | | ?????????????????????????????????????????????????? | | ?????????????????????????????????????????????????? | | ?????????????????????????????????????????????????? | +----------------------------------------------------+ Best States ------------- Heat Dissipation 51 Energy Generation 23 Energy Capacity 265 Matter Stores 331 Matter Capacity 400 Sight Range 17 Robot Scan Range 20 Terrain Scan Density 110 Armor Coverage 300 Resistance: KI 20 Resistance: TH 20 Resistance: EX 20 Resistance: EM 20 Resistance: I 20 Resistance: S 20 Resistance: P 20 Evasion (%) 50 Offensive Hacking 10 Item Schematics ----------------- None Robot Schematics ------------------ None Fabricated ------------ Nothing Alien Tech Used ----------------- None Achievements -------------- None Challenges ------------ None RPGLIKE | -11 -10 -10 -10 -9 --------- Run | Scr Mat Min Exi Min Levels Raised 3 | . 1 1 . 1 XP Earned 9462 | 4000 1975 1940 350 1197 XP Spent 8400 | 3955 1520 1525 . 1400 Upgrades 27 | 17 5 3 . 2 Propulsion Slot 1 | 1 . . . . Utility Slot 3 | 2 . 1 . . Weapon Slot 2 | 1 . . . 1 Core Integrity 3 | 3 . . . . Heat Dissipation 2 | . 2 . . . Energy Generation 1 | 1 . . . . Matter Storage 2 | . . 2 . . Mass Support 2 | 1 . . . 1 Inventory Capacity 3 | 1 2 . . . Sight Range 1 | 1 . . . . Sensor Range 5 | 4 1 . . . Terrain Scan Density 1 | 1 . . . . Ranged Accuracy 1 | 1 . . . . Protomatter Created 33 | . 14 9 . 10 Integrity Restored 27 | . . 27 . . Core 27 | . . 27 . . Protomatter Decayed 12 | . 12 . . . Game ------ Seed OpticalDataRegulator Manual? 0 Play Time 00:31:20 Cumulative 29.8 hours Start 2020.04.18 @ 11:49:41 End 2020.04.18 @ 12:18:53 Sessions 1 Manual Loads 0 Difficulty Adventurer Special Mode Winter2019/RPGLIKE Game No. 21 Rogue 10 Adventurer 11 Explorer 0 Win Type - Total 0 Types 0/0/0/0/0/0/0 Lore% 23 Gallery% 37 Achievement% 27 Wizard Run 0 Options --------- ASCII 0 Keyboard 0 Movement Mouse Keybinds 0 Fullscreen 1 Font 18/SmallcapsGlow Map View 76x50 Tactical HUD 1 Map Filters NONE Filters NONE Steam 1 RUN: 790d74de-89bf-42de-b3cc-9b322248ce5b